bitfinex-derivatives/quotes_ETHF0:USTF0_20241102
["timestamp","ask_amount","ask_price","bid_price","bid_amount"]
[1730520022691,0.27921,2507.7,2507.6,1.75023585]
[1730520023002,0.2792,2507.8,2507.7,0.2792]
[1730520023201,0.2792,2507.8,2507.7,1.75022585]
[1730520024998,0.2792,2507.8,2507.7,1.47102585]
[1730520025200,7.39108442,2507.8,2507.7,1.47102585]
[1730520025390,4.2672,2507.8,2507.4,0.5035]
[1730520025597,4.55317615,2507.6,2507.5,0.56579764]
[1730520025891,4.55317615,2507.6,2507.3,0.77334]
[1730520025892,0.27924,2507.4,2507.3,0.77334]
[1730520026093,0.27924,2507.4,2507.3,2.2444824]
[1730520026491,0.27924,2507.4,2507.3,1.33893662]
[1730520026699,3.92324735,2507.5,2507.3,1.33893662]
[1730520026899,3.92324735,2507.5,2507.4,0.56559662]
[1730520027302,3.92324735,2507.5,2507.3,0.77335]
[1730520027303,7.63201735,2507.5,2507.3,0.77335]
[1730520027597,3.48704,2507.4,2507.3,0.4941]
[1730520027798,3.48704,2507.4,2507.3,1.05956941]
[1730520028000,3.48704,2507.4,2507.3,1.33881941]
[1730520028601,3.2078,2507.4,2507.3,1.33881941]
[1730520029198,3.92324735,2507.5,2507.3,1.33881941]
[1730520029390,3.92324735,2507.5,2507.3,0.77335]
[1730520029790,4.00763,2507.5,2507.3,0.77335]
[1730520030401,0.79983,2507.5,2507.3,0.77335]
[1730520030793,4.00763,2507.5,2507.3,0.4941]
[1730520030995,4.00763,2507.5,2507.4,0.27924]
[1730520031490,0.79983,2507.5,2507.4,0.27924]
[1730520031698,4.00763,2507.5,2507.4,0.27924]
[1730520031998,0.27924,2507.4,2507.3,0.77334]
[1730520035503,2.8785008,2507.4,2507.3,0.77334]
[1730520036008,2.8785008,2507.4,2507.3,0.77335]
[1730520036301,2.87858498,2507.4,2507.3,0.77335]
[1730520037798,2.87858498,2507.4,2507.3,0.4941]
[1730520041807,4.35806226,2507.4,2506.7,0.27931]
[1730520042002,2.35828998,2506.9,2506.8,1.5229]
[1730520042406,0.2793,2506.9,2506.8,1.5229]
[1730520043004,2.87803747,2506.9,2506.8,1.0105]
[1730520043207,0.2793,2506.9,2506.8,1.0105]
[1730520043807,2.8760837,2506.9,2506.8,1.0105]
[1730520044204,0.2793,2506.9,2506.8,1.0105]
[1730520044710,2.87511086,2506.9,2506.8,1.0105]
[1730520047711,6.08291086,2506.9,2506.8,1.0105]
[1730520048617,3.4871,2506.9,2506.8,1.0105]
[1730520049015,6.08291086,2506.9,2506.8,1.0105]
[1730520049607,3.4871,2506.9,2506.8,1.0105]
[1730520050219,5.56165655,2506.9,2506.8,1.0105]
[1730520050515,5.28235655,2506.9,2506.8,1.28981]
[1730520050710,0.5281,2507.1,2506.8,4.9993]
[1730520050711,2.07455655,2507.1,2506.8,4.9993]
[1730520051023,2.07455655,2507.1,2506.8,1.28981]
[1730520051024,1.55579206,2506.9,2506.8,1.28981]
[1730520051520,1.55579206,2506.9,2506.8,5.27861]
[1730520051919,1.55579206,2506.9,2506.8,6.42887226]
[1730520053020,1.55579206,2506.9,2506.8,1.28981]
[1730520053412,1.55579206,2506.9,2506.8,1.0105]
[1730520053413,2.87234829,2506.9,2506.8,1.0105]
[1730520054821,6.59876814,2506.9,2506.8,1.0105]
[1730520055211,5.04288206,2506.9,2506.8,1.0105]
[1730520056822,1.83508206,2506.9,2506.8,1.0105]
[1730520058718,0.27929,2506.9,2506.8,1.0105]
[1730520059513,5.28235655,2507.0,2506.8,1.0105]
[1730520059719,1.55593871,2506.9,2506.8,1.2898]
[1730520060621,1.83522871,2506.9,2506.8,1.2898]
[1730520062428,1.55593871,2506.9,2506.8,1.2898]
[1730520063029,2.07455655,2507.1,2506.8,4.9993]
[1730520063030,1.0376072,2507.0,2506.8,4.9993]
[1730520063227,1.0376072,2507.0,2506.9,2.29655226]
[1730520065326,1.0376072,2507.0,2506.9,6.28535226]
[1730520066729,1.0376072,2507.0,2506.9,6.76925226]
[1730520067025,1.0376072,2507.0,2506.9,7.33328259]
[1730520067230,1.0376072,2507.1,2506.9,7.05399259]
[1730520067527,1.0376072,2507.1,2507.0,0.84339221]
[1730520067724,1.0376072,2507.1,2507.0,4.83219221]
[1730520068531,1.0376072,2507.1,2507.0,0.84339221]
[1730520068722,1.0376072,2507.1,2507.0,4.83219221]
[1730520069126,1.0376072,2507.1,2507.0,0.84339221]
[1730520069431,1.0376072,2507.1,2507.0,1.99365447]
[1730520069632,1.0376072,2507.2,2507.0,8.91097447]
[1730520069831,1.0376072,2507.3,2507.1,4.55291221]
[1730520070027,1.0376072,2507.3,2507.2,2.51913447]
[1730520070532,1.0376072,2507.3,2507.2,6.50793447]
[1730520070926,1.0376072,2507.3,2507.2,6.50813044]
[1730520071233,1.0376072,2507.3,2507.2,7.41102238]
[1730520071433,1.55593871,2507.5,2507.2,7.41102238]
[1730520071434,1.0376072,2507.4,2507.3,0.27925]
[1730520071636,1.55593871,2507.5,2507.4,0.27924]
[1730520072027,1.55593871,2507.5,2507.4,5.13424]
[1730520073634,1.55593871,2507.5,2507.4,5.69845041]
[1730520074241,1.55593871,2507.5,2507.4,1.14624]
[1730520074530,1.03873477,2507.5,2507.4,0.867]
[1730520074728,1.03873477,2507.5,2507.4,1.14624]
[1730520077026,1.03873477,2507.5,2507.4,6.28450226]
[1730520078035,1.03873477,2507.6,2507.5,0.27923]
[1730520080033,1.56873477,2507.6,2507.4,0.867]
[1730520080334,1.03873477,2507.5,2507.4,1.14623]
[1730520080535,0.27923,2507.5,2507.4,0.867]
[1730520080738,1.31796477,2507.5,2507.4,0.867]
[1730520080937,1.03873477,2507.5,2507.4,0.867]
[1730520081232,0.27924,2507.4,2507.0,0.27927]
[1730520081434,2.46746401,2507.2,2507.0,0.27928]
[1730520081633,2.18820401,2507.2,2506.9,0.867]
[1730520081839,3.22680401,2507.2,2507.1,0.27927]
[1730520082534,2.07654175,2507.2,2507.1,0.27927]
[1730520084130,2.07654175,2507.2,2506.9,0.867]
[1730520084331,2.35581175,2507.2,2507.0,0.27928]
[1730520084526,1.03794175,2507.1,2507.0,0.27928]
[1730520084737,2.35581175,2507.2,2507.0,0.27928]
[1730520084938,0.27927,2507.1,2506.9,1.14629]
[1730520085138,0.27927,2507.1,2506.3,2.25550923]
[1730520085139,2.18820401,2507.1,2506.5,1.15026226]
[1730520085335,2.18820401,2506.9,2506.8,0.2793]
[1730520085536,2.70717488,2506.9,2506.8,0.2793]
[1730520085736,3.22517488,2506.9,2506.8,0.2793]
[1730520087637,3.22517488,2506.9,2506.7,0.27931]
[1730520087638,3.50446488,2506.9,2506.7,0.27931]
[1730520088143,1.03808035,2506.8,2506.7,0.27931]
[1730520088538,1.03808035,2506.8,2506.6,1.66642]
[1730520088732,2.08068035,2506.8,2506.6,1.66642]
[1730520089041,1.03808035,2506.7,2506.6,1.66642]
[1730520089237,1.31740035,2506.7,2506.6,0.867]
[1730520089432,1.03808035,2506.7,2506.6,0.867]
[1730520089937,1.03808035,2506.7,2506.5,0.27934]
[1730520090137,1.03808035,2506.6,2506.4,0.5177]
[1730520090438,1.03808035,2506.6,2506.5,0.27934]
[1730520090840,1.03808035,2506.6,2506.4,0.5177]
[1730520091038,1.03808035,2506.6,2506.5,0.27934]
[1730520092543,2.98649488,2506.7,2506.5,0.27934]
[1730520093135,6.19430488,2506.6,2506.3,1.13335]
[1730520093342,1.03804754,2506.4,2506.3,1.13335]
[1730520093739,6.4572698,2506.4,2506.1,0.27938]
[1730520094049,1.15026226,2506.2,2506.1,0.27938]
[1730520094544,2.18788993,2506.2,2506.1,0.27938]
[1730520095443,1.03762767,2506.2,2506.1,0.27938]
[1730520095639,1.03748132,2506.2,2506.1,0.27938]
[1730520096342,1.03748132,2506.2,2505.9,2.50266226]
[1730520096343,10.42301881,2506.2,2505.9,0.2794]
[1730520096546,2.70625991,2506.1,2505.9,0.2794]
[1730520097247,2.98564991,2506.1,2505.9,0.2794]
[1730520097447,2.70625991,2506.1,2506.0,0.27939]
[1730520098643,1.15026226,2506.1,2506.0,0.27939]
[1730520099347,2.98563991,2506.1,2506.0,0.27939]
[1730520099653,1.42964226,2506.1,2506.0,0.27939]
[1730520100447,1.42964226,2506.1,2505.9,0.2794]
[1730520100750,2.46526425,2506.1,2505.9,0.2794]
[1730520101648,2.46526425,2506.1,2506.0,0.27939]
[1730520101849,2.46526425,2506.1,2505.9,0.2794]
[1730520102251,2.46526425,2506.1,2506.0,0.27939]
[1730520102755,1.42964226,2506.1,2506.0,0.27939]
[1730520104954,1.42964226,2506.1,2505.7,1.5505]
[1730520105252,1.42964226,2506.1,2505.9,0.2794]
[1730520106256,1.42964226,2506.1,2505.7,1.5505]
[1730520106257,1.68246226,2506.1,2506.0,0.27939]
[1730520106457,1.96184226,2506.1,2506.0,0.27939]
[1730520107567,4.35806226,2506.2,2506.1,0.27938]
[1730520110650,1.15026226,2506.2,2506.1,0.27938]
[1730520112251,1.15026226,2506.2,2505.7,2.70076226]
[1730520112252,1.42964226,2506.2,2505.7,1.5505]
[1730520112453,1.15026226,2506.0,2505.9,0.27941]
[1730520113055,4.63746226,2506.0,2505.7,0.27942]
[1730520113353,1.15026226,2505.8,2505.7,1.83923]
[1730520117761,4.35806226,2506.0,2505.9,0.27941]
[1730520117966,3.2078,2506.0,2505.9,0.27941]
[1730520119265,1.15026226,2506.1,2506.0,0.27939]
[1730520128469,2.18588425,2506.1,2506.0,0.27939]
[1730520129671,1.15026226,2506.1,2506.0,0.27939]
[1730520130269,2.70625991,2506.1,2506.0,0.27939]
[1730520131374,1.55599765,2506.1,2506.0,9.47885226]
[1730520131674,1.03811244,2506.2,2506.1,0.27938]
[1730520131863,2.70625991,2506.4,2506.1,5.60314806]
[1730520132069,1.03818087,2506.3,2506.2,0.84347175]
[1730520132274,1.03818087,2506.3,2506.2,0.27937]
[1730520132483,2.70625991,2506.4,2506.3,0.27936]
[1730520134374,1.15026226,2506.4,2506.3,0.27936]
[1730520134577,3.22481881,2506.4,2506.3,0.27936]
[1730520135375,1.67126226,2506.4,2506.3,0.27936]
[1730520135570,3.74581881,2506.4,2506.3,0.27936]
[1730520136972,3.74581881,2506.4,2506.3,0.84406791]
[1730520137172,3.74581881,2506.4,2506.3,0.27936]
[1730520138280,3.74581881,2506.4,2506.3,0.84427554]
[1730520138578,1.67126226,2506.4,2506.3,0.84427554]
[1730520139172,1.67126226,2506.4,2506.3,0.84435455]
[1730520140972,1.67126226,2506.4,2506.3,0.27936]
[1730520141166,1.67126226,2506.4,2506.1,1.0486]
[1730520141471,2.07919023,2506.2,2506.1,0.79708]
[1730520141675,2.07919023,2506.2,2506.1,1.36203664]
[1730520141975,2.07919023,2506.2,2506.1,0.84433664]
[1730520142181,7.23323312,2506.3,2506.1,0.84433664]
[1730520142480,2.59581086,2506.2,2506.1,0.27938]
[1730520145786,6.95387312,2506.3,2506.2,0.27937]
[1730520147187,3.74607312,2506.3,2506.2,0.27937]
[1730520148481,3.74920619,2506.3,2506.2,0.27937]
[1730520148681,3.74914588,2506.3,2506.2,0.27937]
[1730520149285,1.42962226,2506.3,2506.2,0.27937]
[1730520149490,3.74925076,2506.3,2506.2,0.27937]
[1730520150091,3.74922093,2506.3,2506.2,0.27937]
[1730520150289,1.15026226,2506.3,2506.2,0.27937]
[1730520150985,3.74925821,2506.3,2506.2,0.27937]
[1730520151685,1.15026226,2506.3,2506.2,0.27937]
[1730520153794,1.42962226,2506.3,2506.2,0.27937]
[1730520154294,1.15026226,2506.3,2506.2,0.27937]
[1730520155896,1.42962226,2506.3,2506.2,0.27937]
[1730520156788,1.15026226,2506.3,2506.2,0.27937]
[1730520157890,3.74951059,2506.3,2506.2,0.84452787]
[1730520158286,3.74951059,2506.3,2506.2,0.27937]
[1730520160499,3.74951059,2506.3,2506.2,0.84466861]
[1730520161094,3.74951059,2506.3,2506.2,0.84466037]
[1730520161794,3.74951059,2506.3,2506.2,0.84474405]
[1730520162502,1.15026226,2506.3,2506.2,0.84474405]
[1730520165197,1.42962226,2506.3,2506.2,0.84474405]
[1730520165400,1.15026226,2506.3,2506.2,0.27937]
[1730520165598,1.15026226,2506.3,2506.2,0.84500281]
[1730520167997,1.15026226,2506.3,2506.2,0.27937]
[1730520168194,1.15026226,2506.3,2506.2,0.84507645]
[1730520169198,1.15026226,2506.3,2506.2,0.27937]
[1730520169799,1.42962226,2506.3,2506.2,0.27937]
[1730520170304,1.15026226,2506.3,2506.2,0.27937]
[1730520172207,1.15026226,2506.3,2506.2,0.84508948]
[1730520174705,1.42962226,2506.3,2506.2,0.84508948]
[1730520174907,1.15026226,2506.3,2506.2,0.84508948]
[1730520176110,1.15026226,2506.3,2506.2,1.41086692]
[1730520179017,1.15026226,2506.3,2506.2,0.84514744]
[1730520180713,1.15026226,2506.3,2506.2,0.27937]
[1730520180904,1.42962226,2506.3,2506.2,0.84534223]
[1730520181413,1.42962226,2506.3,2506.2,0.84537737]
[1730520181808,1.91712226,2506.3,2506.2,0.84537737]
[1730520182515,5.03862573,2506.3,2506.2,0.84537737]
[1730520182717,1.91712226,2506.3,2506.2,0.84537737]
[1730520183207,5.03862573,2506.3,2506.2,0.84537737]
[1730520183707,5.03862573,2506.3,2506.2,0.84555155]
[1730520184812,1.91712226,2506.3,2506.2,0.84555155]
[1730520185210,5.03862573,2506.3,2506.2,1.7515849]
[1730520185409,1.91712226,2506.3,2506.2,1.7515849]
[1730520186719,5.03862573,2506.3,2506.2,1.7515849]
[1730520186912,1.91712226,2506.3,2506.2,1.7515849]
[1730520187211,5.03862573,2506.3,2506.2,0.27937]
[1730520187419,5.03862573,2506.3,2506.2,1.75185775]
[1730520188518,4.75926573,2506.3,2506.2,1.75185775]
[1730520188718,4.27176573,2506.3,2506.2,1.75185775]
[1730520190114,1.15026226,2506.3,2506.2,1.75185775]
[1730520190427,1.15026226,2506.3,2506.2,1.75218051]
[1730520191227,4.27176573,2506.3,2506.2,1.75218051]
[1730520191614,4.55112573,2506.3,2506.2,1.75218051]
[1730520194016,1.42962226,2506.3,2506.2,1.75218051]
[1730520194515,4.55112573,2506.3,2506.2,1.75218051]
[1730520194722,4.55112573,2506.3,2506.2,1.7522666]
[1730520195327,4.55112573,2506.3,2506.2,1.75227255]
[1730520195712,4.27176573,2506.3,2506.2,1.75227255]
[1730520195913,1.42962226,2506.3,2506.2,1.75227255]
[1730520196126,4.55112573,2506.3,2506.2,1.47290255]
[1730520196320,4.55112573,2506.3,2506.2,0.84587098]
[1730520196518,4.55112573,2506.3,2506.2,1.75227787]
[1730520197222,4.55112573,2506.3,2506.2,0.84587098]
[1730520197423,4.55112573,2506.3,2506.2,1.75228235]
[1730520197820,4.55112573,2506.3,2506.2,0.84587098]
[1730520198525,4.55112573,2506.3,2506.2,0.84587606]
[1730520198727,4.55112573,2506.3,2506.2,1.75229533]
[1730520199624,4.27176573,2506.3,2506.2,1.75229533]
[1730520199826,4.55112573,2506.3,2506.2,1.75229934]
[1730520200821,4.27176573,2506.3,2506.2,1.75229934]
[1730520201029,4.55112573,2506.3,2506.2,1.75229934]
[1730520204424,4.27176573,2506.3,2506.2,1.75229934]
[1730520205636,4.55112573,2506.3,2506.2,1.75229934]
[1730520206426,4.55112573,2506.3,2506.2,1.75236236]
[1730520206719,4.27176573,2506.3,2506.2,1.75236236]
[1730520209636,4.27176573,2506.3,2506.2,0.27937]
[1730520209832,4.27176573,2506.3,2506.2,1.75240365]
[1730520210532,1.15026226,2506.3,2506.2,1.75240365]
[1730520214628,4.55112573,2506.3,2506.2,1.75240365]
[1730520214835,4.55112573,2506.3,2506.2,0.8459214]
[1730520216443,4.27176573,2506.3,2506.2,1.75230576]
[1730520217136,4.27176573,2506.3,2506.2,0.27937]
[1730520217338,4.27176573,2506.3,2506.2,1.75224146]
[1730520217942,4.27176573,2506.3,2506.2,0.84585902]
[1730520218338,4.27176573,2506.3,2506.2,1.75224835]
[1730520218840,4.55112573,2506.3,2506.2,0.84585902]
[1730520219234,4.55112573,2506.3,2506.2,0.56648902]
[1730520219436,4.55112573,2506.3,2506.2,0.84585902]
[1730520220942,4.55112573,2506.3,2506.2,0.84586558]
[1730520221248,1.42962226,2506.3,2506.2,1.75225601]
[1730520221740,4.55112573,2506.3,2506.2,1.75225601]
[1730520222239,4.55112573,2506.3,2506.2,0.84586558]
[1730520222645,4.55112573,2506.3,2506.2,1.75226633]
[1730520222941,4.27176573,2506.3,2506.2,0.84586558]
[1730520223146,4.27176573,2506.3,2506.2,1.75225603]
[1730520224545,4.27176573,2506.3,2506.2,0.84586558]
[1730520224740,4.27176573,2506.3,2506.2,1.7522518]
[1730520225143,4.55112573,2506.3,2506.2,1.7522518]
[1730520225441,4.27176573,2506.3,2506.2,1.7522518]
[1730520228347,1.15026226,2506.3,2506.2,1.7522518]
[1730520228549,1.15026226,2506.3,2506.2,1.752255]
[1730520228550,4.27176573,2506.3,2506.2,1.752255]
[1730520228947,4.27176573,2506.3,2506.2,1.75225863]
[1730520232255,4.27176573,2506.3,2506.2,0.27937]
[1730520232545,4.27176573,2506.3,2506.2,1.75227793]
[1730520233647,1.15026226,2506.3,2506.2,1.75224653]
[1730520233844,4.27176573,2506.4,2506.2,5.46327653]
[1730520234040,3.12150347,2506.6,2506.3,7.3595488]
[1730520234249,3.12150347,2506.6,2506.5,0.27934]
[1730520234552,3.12150347,2506.6,2506.5,0.84583097]
[1730520234743,3.12150347,2506.6,2506.5,1.33423097]
[1730520235652,3.40082347,2506.7,2506.6,0.27933]
[1730520235848,4.55108573,2506.7,2506.6,0.84582097]
[1730520236055,4.55108573,2506.7,2506.6,0.84557511]
[1730520236553,4.27176573,2506.7,2506.6,0.84557511]
[1730520237351,4.55108573,2506.7,2506.6,0.84557511]
[1730520237558,4.55108573,2506.7,2506.6,0.27933]
[1730520237748,4.27176573,2506.7,2506.6,0.84541342]
[1730520238454,1.15026226,2506.7,2506.6,0.84541342]
[1730520239654,1.15026226,2506.7,2506.6,0.27933]
[1730520239850,1.15026226,2506.7,2506.6,0.8452786]
[1730520240051,1.15026226,2506.7,2506.6,0.27933]
[1730520240355,1.15026226,2506.7,2506.6,0.8453222]
[1730520240555,1.15026226,2506.7,2506.6,0.84531509]
[1730520241148,1.15026226,2506.7,2506.6,0.84531148]
[1730520242955,1.15026226,2506.7,2506.6,0.27933]
[1730520243358,1.42958226,2506.7,2506.6,0.27933]
[1730520244251,1.15026226,2506.7,2506.6,0.27933]
[1730520246147,1.15026226,2506.7,2506.6,0.84506653]
[1730520247147,3.75001398,2506.7,2506.6,0.84506653]
[1730520247352,1.15026226,2506.7,2506.6,4.83466653]
[1730520247757,3.23021173,2506.7,2506.6,5.73963913]
[1730520248356,3.23021173,2506.7,2506.6,5.73946065]
[1730520248555,3.23021173,2506.7,2506.6,4.83466653]
[1730520250063,1.15026226,2506.7,2506.6,5.73931712]
[1730520250266,2.70941734,2506.7,2506.6,5.73931712]
[1730520250764,1.55915508,2506.7,2506.6,5.73931712]
[1730520251264,1.15026226,2506.8,2506.7,0.27932]
[1730520251265,2.70941734,2506.8,2506.7,0.27932]
[1730520251461,2.70941734,2506.8,2506.7,5.33475653]
[1730520252163,2.70925578,2506.8,2506.7,5.33475653]
[1730520253565,2.70925578,2506.8,2506.7,4.76902]
[1730520253762,2.70925578,2506.8,2506.7,5.33400976]
[1730520254260,1.15026226,2506.8,2506.7,5.33400976]
[1730520254653,2.70925578,2506.8,2506.7,5.33400976]
[1730520255261,2.18899938,2506.8,2506.7,5.33400976]
[1730520255856,1.03873712,2506.8,2506.7,5.33400976]
[1730520256057,2.18899938,2506.8,2506.7,5.33400976]
[1730520257271,1.15026226,2506.8,2506.7,4.76902]
[1730520257467,1.15026226,2506.8,2506.7,5.33371794]
[1730520257968,2.18899938,2506.8,2506.7,5.33371794]
[1730520258168,1.15026226,2506.8,2506.7,5.33371794]
[1730520258364,2.18899938,2506.8,2506.7,5.82251794]
[1730520258564,1.15026226,2506.8,2506.7,5.82251794]
[1730520260966,2.18899938,2506.8,2506.7,0.84401794]
[1730520261161,2.18899938,2506.8,2506.7,0.27932]
[1730520261162,3.51107616,2506.8,2506.7,0.27932]
[1730520261367,3.23176616,2506.8,2506.7,0.27932]
[1730520263480,1.67366226,2506.8,2506.7,0.27932]
[1730520265285,3.75361173,2506.8,2506.7,0.27932]
[1730520265570,1.67366226,2506.8,2506.7,0.27932]
[1730520267774,3.75361173,2506.8,2506.7,0.27932]
[1730520267976,1.67366226,2506.8,2506.7,0.27932]
[1730520268178,3.75361173,2506.8,2506.7,0.27932]
[1730520272672,3.75256613,2506.8,2506.7,0.27932]
[1730520272982,1.67366226,2506.8,2506.7,0.27932]
[1730520275284,4.27341398,2506.8,2506.7,0.27932]
[1730520277888,4.27341398,2506.8,2506.7,0.84462869]
[1730520278785,4.27341398,2506.8,2506.7,0.27932]
[1730520278980,4.27341398,2506.8,2506.7,0.84474104]
[1730520280886,1.67366226,2506.8,2506.7,0.84474104]
[1730520282086,4.27341398,2506.8,2506.7,0.84474104]
[1730520283390,4.27341398,2506.8,2506.7,0.27932]
[1730520283691,4.27341398,2506.8,2506.7,0.84502049]
[1730520284889,4.27588894,2506.8,2506.7,0.84502049]
[1730520285485,4.27614429,2506.8,2506.7,0.84502049]
[1730520285688,4.27614429,2506.8,2506.7,1.36122049]
[1730520286085,1.67366226,2506.8,2506.7,1.36122049]
[1730520287385,1.67366226,2506.8,2506.7,1.36130379]
[1730520288792,3.75426219,2506.8,2506.7,1.36130379]
[1730520289288,1.15026226,2506.8,2506.7,1.36130379]
[1730520289494,3.75469408,2506.8,2506.7,1.36130379]
[1730520290293,1.15026226,2506.8,2506.7,1.36130379]
[1730520291193,1.15026226,2506.8,2506.7,1.36145141]
[1730520291388,1.15026226,2506.8,2506.7,2.26705124]
[1730520294891,1.15026226,2506.8,2506.7,2.267311]
[1730520295092,1.15026226,2506.8,2506.7,2.2672965]
[1730520298592,1.15026226,2506.8,2506.7,0.79552]
[1730520298795,1.15026226,2506.8,2506.7,2.26738364]
[1730520298992,1.15026226,2506.8,2506.7,2.26737402]
[1730520301399,1.15026226,2506.8,2506.7,2.26750368]
[1730520301692,1.15026226,2506.8,2506.7,1.47198368]
[1730520301693,1.42957226,2506.8,2506.7,1.47198368]
[1730520301889,1.42957226,2506.8,2506.7,0.56614757]
[1730520302995,1.15026226,2506.8,2506.7,1.75137044]
[1730520303193,4.27760862,2507.0,2506.9,0.27929]
[1730520303396,4.27760862,2507.0,2506.9,1.75134044]
[1730520303786,4.27760862,2507.0,2506.9,2.23904044]
[1730520304992,4.27760862,2507.0,2506.9,0.76699]
[1730520305296,4.27760862,2507.0,2506.9,2.23905599]
[1730520305890,3.75607895,2507.0,2506.9,2.23905599]
[1730520306299,2.60581669,2507.0,2506.9,2.23905599]
[1730520306496,2.60581669,2507.0,2506.9,3.37129228]
[1730520306799,1.15026226,2507.2,2507.0,0.27928]
[1730520306800,2.60581669,2507.1,2507.0,0.27928]
[1730520306988,2.60581669,2507.1,2507.0,2.59934599]
[1730520307792,2.08420914,2507.1,2507.0,7.44082613]
[1730520307996,2.08420914,2507.1,2507.0,7.72010613]
[1730520308402,2.60581669,2507.3,2507.1,0.27927]
[1730520308403,2.08420914,2507.2,2507.1,0.27927]
[1730520308595,2.08420914,2507.2,2507.1,5.74013599]
[1730520308789,2.08420914,2507.2,2507.1,4.26807]
[1730520308998,2.08420914,2507.2,2507.1,5.7390478]
[1730520309193,2.08420914,2507.2,2507.1,5.73903009]
[1730520310399,2.08420914,2507.3,2507.2,0.27926]
[1730520310700,2.08420914,2507.3,2507.2,1.37281388]
[1730520311897,2.08420914,2507.3,2507.2,5.36161388]
[1730520312499,1.56089272,2507.3,2507.2,5.36161388]
[1730520312701,3.2344714,2507.4,2507.3,0.27925]
[1730520312909,2.08420914,2507.5,2507.3,8.25835388]
[1730520313198,3.75607895,2507.6,2507.3,3.98385]
[1730520313199,1.5610075,2507.4,2507.3,3.98385]
[1730520313403,1.5610075,2507.5,2507.4,0.27924]
[1730520313596,1.5610075,2507.5,2507.4,0.8442408]
[1730520313795,1.5610075,2507.5,2507.4,4.8322408]
[1730520314000,1.15026226,2507.6,2507.5,0.27923]
[1730520314207,1.15026226,2507.6,2507.5,1.6922308]
[1730520314408,2.7101124,2507.6,2507.5,1.12723]
[1730520314698,2.7101124,2507.6,2507.5,2.27749226]
[1730520314699,1.55985014,2507.6,2507.5,2.27749226]
[1730520314901,2.08420914,2507.7,2507.6,0.27922]
[1730520314902,1.55985014,2507.7,2507.6,0.27922]
[1730520315102,3.2344714,2507.9,2507.6,5.08151378]
[1730520315103,1.55985014,2507.8,2507.6,5.08151378]
[1730520315302,1.55985014,2507.8,2507.7,1.36362378]
[1730520315507,2.7101124,2507.9,2507.8,0.27919]
[1730520316707,1.15026226,2507.9,2507.8,0.27919]
[1730520317198,4.76765014,2508.0,2507.9,0.27918]
[1730520317404,3.2078,2508.0,2507.9,0.27918]
[1730520320116,1.15026226,2508.1,2507.7,1.66986226]
[1730520320306,1.15026226,2508.1,2508.0,0.27917]
[1730520320506,1.15026226,2508.1,2508.0,1.12717]
[1730520322115,2.60581669,2508.6,2508.0,1.12717]
[1730520322116,0.2791,2508.7,2508.3,0.27914]
[1730520322313,1.15026226,2508.4,2508.2,0.27914]
[1730520322510,1.15026226,2508.3,2508.1,1.0278]
[1730520322711,1.15026226,2508.3,2508.2,0.848]
[1730520322911,1.15026226,2508.3,2508.2,0.27915]
[1730520323112,1.15026226,2508.3,2508.2,1.12715]
[1730520324517,1.67966226,2508.4,2508.3,0.27914]
[1730520326214,1.67966226,2508.4,2508.3,0.76444]
[1730520333839,0.5294,2508.4,2508.3,0.76444]
[1730520335935,1.15026226,2508.6,2508.5,0.27912]
[1730520336135,0.5068,2508.6,2508.5,0.27912]
[1730520337232,0.5068,2508.6,2508.5,1.42938226]
[1730520337430,3.2078,2508.7,2508.6,0.2791]
[1730520337638,3.2078,2508.7,2508.6,1.42936226]
[1730520337939,1.55605135,2508.9,2508.8,0.27908]
[1730520338141,1.0208,2509.7,2508.8,3.14752452]
[1730520338441,1.0208,2509.7,2509.6,0.27899]
[1730520339740,1.0208,2509.7,2509.5,4.0548]
[1730520339741,1.0208,2509.7,2509.5,4.3338]
[1730520339942,1.0208,2509.7,2509.5,4.0548]
[1730520340133,6.43485226,2509.7,2509.6,0.847]
[1730520340449,2.45005226,2509.7,2509.6,0.847]
[1730520340646,6.43485226,2509.7,2509.6,0.847]
[1730520341344,0.27899,2509.6,2509.5,0.847]
[1730520341643,4.26379,2509.6,2509.5,0.847]
[1730520341836,3.9848,2509.6,2509.5,0.847]
[1730520342239,4.26379,2509.6,2509.5,0.847]
[1730520343832,4.26379,2509.6,2509.4,0.847]
[1730520344031,2.17106226,2509.7,2509.4,0.847]
[1730520344236,0.279,2509.5,2509.4,0.847]
[1730520345443,2.17106226,2509.7,2509.4,0.847]
[1730520345646,0.27899,2509.6,2509.4,0.847]
[1730520347747,2.17106226,2509.7,2509.4,0.847]
[1730520347943,2.17106226,2509.7,2509.4,1.12601]
[1730520347944,2.45005226,2509.7,2509.4,1.12601]
[1730520348549,1.29979,2509.7,2509.4,1.12601]
[1730520348737,1.29979,2509.7,2509.5,0.279]
[1730520349047,5.28459,2509.7,2509.4,2.27627226]
[1730520349248,1.29979,2509.7,2509.4,2.27627226]
[1730520350948,0.279,2509.6,2509.4,1.99726226]
[1730520351451,0.279,2509.6,2509.4,0.847]
[1730520352946,0.279,2509.6,2509.4,1.99726226]
[1730520353542,0.279,2509.6,2509.4,2.27627226]
[1730520353945,0.279,2509.6,2509.4,1.42927226]
[1730520354252,0.279,2509.6,2509.4,2.27627226]
[1730520354847,0.279,2509.6,2509.4,0.847]
[1730520359649,0.279,2509.6,2509.4,1.12601]
[1730520360050,0.279,2509.6,2509.4,0.847]
[1730520361857,0.279,2509.6,2509.4,1.12601]
[1730520362050,0.279,2509.6,2509.4,0.847]
[1730520364653,0.279,2509.6,2509.4,1.12601]
[1730520365555,0.279,2509.6,2509.4,0.847]
[1730520365751,0.279,2509.6,2509.4,1.12601]
[1730520365952,0.279,2509.6,2509.5,0.493]
[1730520367054,1.0208,2509.7,2509.5,0.493]
[1730520367257,1.29979,2509.7,2509.5,0.493]
[1730520368362,3.37432344,2509.7,2509.5,0.493]
[1730520368952,3.09533344,2509.7,2509.5,0.493]
[1730520369153,0.27899,2509.6,2509.5,0.493]
[1730520370164,3.09533344,2509.7,2509.5,0.493]
[1730520370462,0.27899,2509.6,2509.5,0.493]
[1730520374257,2.35523343,2509.6,2509.5,0.493]
[1730520374453,0.27899,2509.6,2509.5,0.493]
[1730520375466,2.87215681,2509.6,2509.5,0.493]
[1730520377967,0.27899,2509.6,2509.5,0.493]
[1730520378165,2.87686026,2509.6,2509.5,0.493]
[1730520378364,0.27899,2509.6,2509.5,0.493]
[1730520378764,1.0208,2509.7,2509.5,0.493]
[1730520379066,1.29979,2509.7,2509.5,0.772]